Workbook

Sheet Informe 5
A1: ENTEL PERU S.A.-2018-5 INGRESOS POR CATEGORÍA-21062019
A3: INFORME 5: INGRESOS POR CATEGORÍA
A5: Periodo de reporte: Al 31 de Diciembre 2018
A7: Expresado en Miles Nuevos Soles | B7: Cantidad de unidades | C7: Ingresos | D7: Ajuste por interconexión | E7: Ingresos netos de interconexión | F7: Número de nota | H7: unidad de medida
A8: TOTAL DE INGRESOS OPERATIVOS | C8: =SUM(C9:C70) -> 2470543145 | D8: =SUM(D9:D70) -> 210007382.6 | E8: =+C8-D8 -> 2260535763
A9: Instalación Telefonía Fija de Abonado Urbano | D9: 0 | E9: =+C9-D9 -> 0
A10: Renta Telefonía Fija de Abonado Urbano | D10: 0 | E10: =+C10-D10 -> 0
A11: Llamadas locales Telefonía Fija de Abonado Urbano (DD) | B11: 13787740.2 | C11: =VLOOKUP(A11,[71]HT!$D$218:$E$243,2,0) -> 914792.68 | D11: 0 | E11: 914792.68 | H11: Minutos reales
A12: Llamadas fijo-móvil (DD) | D12: 0 | E12: 0 | H12: minutos
A13: Llamadas fijo-móvil (tarjetas) | D13: 0 | E13: 0 | H13: minutos
A14: Llamadas locales Telefonía Fija de Abonado Urbano (Tarjetas) | D14: 0 | E14: 0 | H14: minutos
A15: Llamadas LDN Telefonía Fija de Abonado Urbano (DD) | B15: 762700.0133 | C15: =VLOOKUP(A15,[71]HT!$D$218:$E$243,2,0) -> 238712.32 | D15: 0 | E15: 238712.32 | H15: Minutos reales
A16: Llamadas LDI Telefonía Fija de Abonado Urbano (DD) | D16: 0 | E16: 0
A17: Llamadas LDN Telefonía Fija de Abonado Urbano (Tarjetas) | D17: 0 | E17: 0
A18: Llamadas LDI Telefonía Fija de Abonado Urbano (Tarjetas) | D18: 0 | E18: 0
A19: Llamadas locales Telefonía Fija de TUP Urbano (Monedas) | D19: 0 | E19: 0
A20: Llamadas TUP-móvil (Monedas) | D20: 0 | E20: 0
A21: Llamadas locales Telefonía Fija de TUP Urbano (Tarjetas) | D21: 0 | E21: 0
A22: Llamadas TUP-móvil (Tarjetas) | D22: 0 | E22: 0
A23: Llamadas LDN Telefonía Fija de TUP Urbano (Monedas) | D23: 0 | E23: 0
A24: Llamadas LDI Telefonía Fija de TUP Urbano (Monedas) | D24: 0 | E24: 0
A25: Llamadas LDN Telefonía Fija de TUP Urbano (Tarjetas) | D25: 0 | E25: 0
A26: Llamadas LDI Telefonía Fija de TUP Urbano (Tarjetas) | D26: 0 | E26: 0
A27: Acceso Instalación Telefonía Fija de Abonado Rural | D27: 0 | E27: 0
A28: Acceso Renta Telefonía Fija de Abonado Rura | D28: 0 | E28: 0
A29: Llamadas locales Telefonía Fija de Abonado Rural (DD) | D29: 0 | E29: 0
A30: Llamadas fijo-móvil desde Abonado Rural (DD) | D30: 0 | E30: 0
A31: Llamadas locales Telefonía Fija de Abonado Rural (Tarjetas) | D31: 0 | E31: 0
A32: Llamadas fijo-móvil desde Abonado Rural (Tarjetas) | D32: 0 | E32: 0
A33: Llamadas LDN Telefonía Fija de Abonado Rural (DD) | D33: 0 | E33: 0
A34: Llamadas LDI Telefonía Fija de Abonado Rural (DD) | D34: 0 | E34: 0
A35: Llamadas LDN Telefonía Fija de Abonado Rural (Tarjetas) | D35: 0 | E35: 0
A36: Llamadas LDI Telefonía Fija de Abonado Rural (Tarjetas) | D36: 0 | E36: 0
A37: Llamadas locales Telefonía Fija de TUP Rural (Tarjetas y monedas) | D37: 0 | E37: 0
A38: Llamadas TUP-móvil (Tarjetas y monedas) | D38: 0 | E38: 0
A39: Llamadas LDN Telefonía Fija de TUP Rural (Tarjetas y monedas) | D39: 0 | E39: 0
A40: Llamadas LDI Telefonía Fija de TUP Rural (Tarjetas y monedas) | D40: 0 | E40: 0
A41: Instalación Televisión de Paga | D41: 0 | E41: 0
A42: Renta Básica Televisión de Paga | D42: 0 | E42: 0
A43: Servicio de canales adicionales Televisión de Paga | D43: 0 | E43: 0
A44: Instalación Internet Fijo | D44: 0 | E44: 0
A45: Prestación de servicios Internet Fijo | B45: 199867 | C45: =VLOOKUP(A45,[71]HT!$D$218:$E$243,2,0) -> 74820569.48 | D45: 0 | E45: 74820569.48 | H45: abonados BAFI
A46: Renta mensual por Voz Móvil | B46: 3751034 | C46: =+'[72]Informe-5 2018'!$C$46 -> 166753686.3 | D46: 0 | E46: 166753686.3 | H46: abonados voz postpago
A47: Llamadas Locales de Voz Móvil por Telefonía Móvil | B47: 5170165658 | C47: =VLOOKUP(A47,[71]HT!$D$218:$E$243,2,0) -> 153882642.1 | D47: 0 | E47: 153882642.1 | H47: llamadas
A48: Llamadas LD de Voz Móvil por Telefonía Móvil | B48: 27289213 | C48: =VLOOKUP(A48,[71]HT!$D$218:$E$243,2,0) -> 444970.76 | D48: 0 | E48: 444970.76 | H48: llamadas
A49: Mensajes de texto Telefonía Móvil | B49: 1767097110 | C49: =VLOOKUP(A49,[71]HT!$D$218:$E$243,2,0) -> 89566508 | D49: 0 | E49: 89566508 | H49: SMS
A50: Roaming Internacional por Telefonía Móvil | B50: 1422202 | C50: =VLOOKUP(A50,[71]HT!$D$218:$E$243,2,0) -> 17041623.51 | D50: 0 | E50: 17041623.51 | H50: minutos
A51: Renta mensual de Internet Móvil por Telefonía Móvil | B51: 3927583 | C51: =VLOOKUP(A51,[71]HT!$D$218:$E$243,2,0) -> 765635672.4 | D51: 0 | E51: 765635672.4 | H51: abonados int movil postpago
A52: Consumo no incluido en la renta mensual Internet Móvil | B52: 25609279582 | C52: =VLOOKUP(A52,[71]HT!$D$218:$E$243,2,0) -> 89192226.18 | D52: 0 | E52: 89192226.18 | H52: Megas
A53: Servicios Suplementarios | B53: ND | C53: =VLOOKUP(A53,[71]HT!$D$218:$E$243,2,0) -> 40966579.39 | D53: 0 | E53: 40966579.39
A54: Servicios de valor añadido (no incluye Internet) | B54: ND | C54: =VLOOKUP(A54,[71]HT!$D$218:$E$243,2,0) -> 8868899.28 | D54: 0 | E54: 8868899.28
A55: Suministro de Equipos | B55: 9227687 | C55: =+'[72]Informe-5 2018'!$C$55 -> 810024303.7 | D55: 0 | E55: 810024303.7 | H55: Unidades equipos y chips, incluye reposiciones y alquilados
A56: Instalación para otros operadores | C56: 1632985 | D56: 0 | E56: 1632985
A57: Instalación para clientes privados | C57: 98016 | D57: 0 | E57: 98016
A58: Alquiler y Transmisión a otros operadores | B58: 180341 | C58: 4706495 | D58: 0 | E58: 4706495 | H58: Mbps
A59: Alquiler y Transmisión a clientes privados | B59: 1758 | C59: 600558.09 | D59: 0 | E59: 600558.09 | H59: Mbps
A60: Provisión de acceso a Empresas Emisoras de Dinero Electrónico (EEDE) | B60: =+[71]unidades!B15 -> 1716728 | C60: =VLOOKUP(A60,[71]HT!$D$218:$E$243,2,0) -> 337470.71 | D60: 0 | E60: 337470.71 | H60: transacciones USSD
A61: Transporte Conmutado Local | D61: 0 | E61: 0
A62: Transporte Conmutado de Larga Distancia Naciona | D62: 0 | E62: 0
A63: Acceso a los Teléfonos de Uso Público | D63: 0 | E63: 0
A64: Terminación de Llamadas en la Red de Servicio Móvil | B64: 7933568718 | C64: =VLOOKUP(A64,[71]HT!$D$218:$E$243,2,0) -> 189038720.5 | D64: 209336823.9 | E64: =+C64-D64 -> -20298103.34 | H64: Minutos reales
A65: Terminación de Llamadas en la Red del Servicio de Telefonía Fija Local | B65: 37793243 | C65: =VLOOKUP(A65,[71]HT!$D$218:$E$243,2,0) -> 605538.8 | D65: 670558.7552 | E65: -65019.95521 | H65: Minutos reales
A66: Facturación y Recaudación | B66: 178091 | C66: =VLOOKUP(A66,[71]HT!$D$218:$E$243,2,0) -> 2342.66 | E66: 2342.66 | H66: Recibos
A67: Adecuación de Red | B67: 704 | C67: =VLOOKUP(A67,[71]HT!$D$218:$E$243,2,0) -> 4263815.69 | E67: 4263815.69 | H67: # enlaces
A68: Acceso a la Plataforma de Pago | B68: 295424.5888 | C68: =VLOOKUP(A68,[71]HT!$D$218:$E$243,2,0) -> 12405.83 | E68: 12405.83 | H68: Minutos reales
A69: Enlaces de Interconexión | B69: 24 | C69: =VLOOKUP(A69,[71]HT!$D$218:$E$243,2,0) -> 104764.52 | E69: 104764.52 | H69: # enlaces de interconexión
A70: Otros | C70: =VLOOKUP(A70,[71]HT!$D$218:$E$243,2,0) -> 50788846.48 | E70: 50788846.48
C72: 0
